bitfinex/quotes_SOLUSD_20251226
["timestamp","ask_amount","ask_price","bid_price","bid_amount"]
[1766760321852,10.43767296,123.81,123.72,11.14767296]
[1766760321853,6.28844377,123.77,123.72,11.14767296]
[1766760322164,6.28844377,123.75,123.72,0.71]
[1766760322355,6.28844377,123.84,123.69,20.21169254]
[1766760322356,6.28844377,123.73,123.69,0.71]
[1766760322557,10.43767296,123.76,123.69,0.71]
[1766760322558,0.69,123.74,123.69,0.71]
[1766760322867,0.69,123.75,123.69,0.71]
[1766760323035,6.28844377,123.74,123.69,8.79463681]
[1766760323852,6.28844377,123.74,123.69,0.71]
[1766760323853,6.28844377,123.73,123.69,0.71]
[1766760324261,6.28844377,123.71,123.68,0.1]
[1766760324460,6.97844377,123.72,123.68,0.1]
[1766760325549,0.69,123.8,123.69,0.71]
[1766760325861,6.28844377,123.74,123.69,0.71]
[1766760326170,6.97844377,123.74,123.69,0.71]
[1766760326751,6.28844377,123.72,123.68,8.18511977]
[1766760326955,0.69,123.73,123.68,8.18511977]
[1766760327169,6.28844377,123.72,123.68,8.18511977]
[1766760327472,0.69,123.73,123.69,8.08465083]
[1766760327766,6.97844377,123.73,123.69,8.08465083]
[1766760328170,6.97844377,123.73,123.69,0.71]
[1766760328349,6.28844377,123.71,123.68,0.1]
[1766760328868,6.28844377,123.72,123.68,0.1]
[1766760329077,6.28844377,123.69,123.68,0.1]
[1766760329365,6.28844377,123.69,123.66,0.1]
[1766760329566,6.28844377,123.67,123.66,0.1]
[1766760329747,6.28844377,123.67,123.65,0.1]
[1766760330148,25.19767296,123.7,123.65,0.1]
[1766760330149,6.28844377,123.69,123.65,0.1]
[1766760330544,6.28844377,123.68,123.65,0.1]
[1766760330869,6.28844377,123.66,123.65,0.1]
[1766760331169,6.97844377,123.66,123.6,23.56041002]
[1766760331356,6.97844377,123.66,123.61,8.79991104]
[1766760331357,0.69,123.66,123.61,8.79991104]
[1766760331557,0.69,123.66,123.62,8.08928898]
[1766760331866,6.28844377,123.65,123.62,8.79928898]
[1766760332169,6.28844377,123.65,123.62,0.71]
[1766760332770,10.43767296,123.68,123.6,15.47]
[1766760332951,6.28844377,123.64,123.6,23.56050177]
[1766760333150,0.69,123.6,123.56,0.8093234]
[1766760333350,16.72611673,123.66,123.49,0.71]
[1766760333351,0.69,123.56,123.49,0.71]
[1766760333658,6.28844377,123.53,123.49,0.71]
[1766760333858,0.69,123.55,123.49,0.71]
[1766760334053,6.28844377,123.53,123.49,0.71]
[1766760334371,0.69,123.55,123.49,0.71]
[1766760334572,6.28844377,123.54,123.5,0.71]
[1766760334754,29.39767296,123.57,123.5,0.71]
[1766760334956,4.2,123.57,123.5,0.71]
[1766760335275,4.2,123.57,123.49,43.10236196]
[1766760335276,4.2,123.57,123.52,0.71]
[1766760336275,6.28844377,123.6,123.54,0.71]
[1766760336480,0.69,123.63,123.54,0.71]
[1766760336481,10.43767296,123.61,123.54,0.71]
[1766760336663,0.69,123.63,123.55,0.71]
[1766760336975,11.12767296,123.63,123.55,6.28844377]
[1766760337273,6.28844377,123.62,123.57,0.71]
[1766760337457,0.69,123.63,123.57,0.71]
[1766760337852,6.28844377,123.61,123.57,0.71]
[1766760338055,6.28844377,123.62,123.57,0.71]
[1766760338883,6.28844377,123.6,123.55,0.71]
[1766760339052,0.69,123.61,123.55,0.71]
[1766760339247,6.28844377,123.59,123.55,0.71]
[1766760339480,0.69,123.6,123.53,16.27951995]
[1766760339688,10.43767296,123.62,123.53,14.76]
[1766760339893,0.69,123.61,123.55,8.80387795]
[1766760340072,6.97844377,123.61,123.56,8.80302509]
[1766760340272,6.97844377,123.61,123.56,0.71]
[1766760340463,6.28844377,123.59,123.54,0.71]
[1766760340666,0.69,123.6,123.54,0.71]
[1766760340875,0.69,123.62,123.56,0.71]
[1766760341095,0.69,123.61,123.56,0.71]
[1766760341291,6.28844377,123.6,123.56,0.71]
[1766760341768,6.28844377,123.57,123.53,14.76]
[1766760341987,6.28844377,123.57,123.51,0.71]
[1766760341988,0.69,123.57,123.51,0.71]
[1766760342294,10.26201248,123.57,123.53,8.09513125]
[1766760342462,0.69,123.6,123.54,0.71]
[1766760342657,10.43767296,123.62,123.54,0.71]
[1766760342868,0.69,123.58,123.52,0.71]
[1766760343069,10.95201248,123.58,123.53,0.71]
[1766760343270,10.26201248,123.58,123.53,0.71]
[1766760343475,10.26201248,123.56,123.51,0.66]
[1766760344069,10.26201248,123.54,123.51,0.66]
[1766760344384,0.7,123.56,123.49,15.48]
[1766760344689,10.26201248,123.54,123.5,0.72]
[1766760344860,10.26201248,123.57,123.51,0.72]
[1766760345061,10.96201248,123.59,123.52,10.26201248]
[1766760345275,0.7,123.59,123.53,0.72]
[1766760345583,10.26201248,123.58,123.53,0.72]
[1766760346182,0.7,123.59,123.53,0.72]
[1766760346365,10.26201248,123.57,123.53,0.72]
[1766760346681,0.7,123.59,123.53,0.72]
[1766760347058,10.26201248,123.58,123.53,8.81517168]
[1766760347259,10.26201248,123.57,123.53,0.72]
[1766760348059,10.26201248,123.58,123.53,8.81497024]
[1766760348261,10.26201248,123.57,123.52,8.8157995]
[1766760348469,10.26201248,123.56,123.52,0.72]
[1766760348982,10.96201248,123.57,123.52,8.81576836]
[1766760349184,0.7,123.59,123.53,0.72]
[1766760349387,10.96201248,123.59,123.53,0.72]
[1766760349612,10.26201248,123.6,123.54,0.72]
[1766760350090,0.7,123.61,123.54,0.72]
[1766760350296,8.0874902,123.65,123.53,25.04201248]
[1766760350297,0.7,123.65,123.57,0.72]
[1766760350578,10.26201248,123.63,123.57,0.72]
[1766760350763,10.96201248,123.63,123.57,0.72]
[1766760350966,10.26201248,123.62,123.57,0.72]
[1766760351286,20.69968544,123.66,123.56,8.81280019]
[1766760351287,10.96201248,123.61,123.56,8.81280019]
[1766760351477,0.7,123.61,123.56,0.72]
[1766760351679,10.96201248,123.59,123.54,8.81432665]
[1766760351983,0.7,123.59,123.55,8.093439]
[1766760352187,0.7,123.61,123.56,8.81293723]
[1766760352382,10.96201248,123.61,123.56,8.81293723]
[1766760352563,10.26201248,123.6,123.56,8.81293723]
[1766760352759,10.26201248,123.6,123.56,8.09293723]
[1766760353188,10.96201248,123.61,123.56,0.72]
[1766760353383,0.7,123.63,123.56,0.72]
[1766760353559,0.7,123.63,123.57,0.72]
[1766760353760,10.26201248,123.61,123.57,0.72]
[1766760354176,10.26201248,123.62,123.57,0.72]
[1766760354378,0.7,123.63,123.57,0.72]
[1766760354597,0.7,123.71,123.6,0.72]
[1766760354901,10.26201248,123.65,123.61,15.5]
[1766760355065,10.26201248,123.66,123.62,8.80905126]
[1766760355263,14.78,123.71,123.63,0.72]
[1766760355463,0.7,123.69,123.63,0.72]
[1766760355682,10.26201248,123.69,123.63,0.72]
[1766760355892,0.7,123.71,123.64,0.72]
[1766760356089,10.26201248,123.7,123.64,0.72]
[1766760356471,10.26201248,123.69,123.64,0.72]
[1766760356671,10.96201248,123.69,123.64,15.5]
[1766760356881,10.96201248,123.69,123.65,0.72]
[1766760357090,0.7,123.69,123.65,0.72]
[1766760357513,10.96201248,123.69,123.65,8.80734079]
[1766760357791,0.7,123.72,123.65,8.80734079]
[1766760358004,10.26201248,123.69,123.65,8.80734079]
[1766760358164,0.7,123.7,123.65,8.80734079]
[1766760358365,10.26201248,123.69,123.65,8.80734079]
[1766760358986,0.7,123.7,123.65,0.72]
[1766760359196,0.7,123.69,123.64,8.08792209]
[1766760359368,10.26201248,123.68,123.64,8.80792209]
[1766760359568,10.96201248,123.69,123.64,0.72]
[1766760359772,10.26201248,123.69,123.64,0.72]
[1766760360286,10.26201248,123.68,123.64,0.72]
[1766760360470,10.26201248,123.67,123.63,8.08854886]
[1766760360667,10.26201248,123.67,123.63,0.72]
[1766760360873,10.96201248,123.65,123.62,14.78]
[1766760361067,0.7,123.65,123.62,14.78]
[1766760361267,18.52051952,123.72,123.62,14.78]
[1766760361268,10.26201248,123.67,123.63,0.72]
[1766760361487,0.7,123.72,123.64,0.72]
[1766760361793,0.7,123.72,123.65,0.72]
[1766760361794,10.26201248,123.71,123.65,0.72]
[1766760361967,0.2,123.74,123.67,10.26201248]
[1766760362168,0.7,123.8,123.72,20.69968544]
[1766760362473,14.46427314,123.81,123.75,0.72]
[1766760362669,10.26201248,123.78,123.73,0.80821142]
[1766760362874,10.26201248,123.76,123.72,15.48]
[1766760363080,10.26201248,123.77,123.72,15.48]
[1766760363272,18.51340536,123.83,123.72,23.56251117]
[1766760363273,10.96201248,123.78,123.72,23.56251117]
[1766760363477,10.43767296,123.83,123.72,14.76]
[1766760363478,0.7,123.79,123.72,14.76]
[1766760363677,10.96201248,123.73,123.68,8.80521432]
[1766760363886,0.7,123.77,123.69,0.72]
[1766760364086,10.43767296,123.78,123.68,14.76]
[1766760364087,10.26201248,123.71,123.68,14.76]
[1766760364297,10.26201248,123.7,123.68,14.76]
[1766760365195,10.96201248,123.71,123.68,14.76]
[1766760365390,0.7,123.71,123.68,22.84527561]
[1766760365598,0.7,123.71,123.68,14.76]
[1766760365599,10.26201248,123.71,123.68,14.76]
[1766760366469,10.43767296,123.75,123.68,15.48]
[1766760366697,10.26201248,123.72,123.68,15.48]
[1766760367076,10.26201248,123.72,123.68,23.56523936]
[1766760367678,10.26201248,123.71,123.68,14.76]
[1766760368080,0.7,123.72,123.68,14.76]
[1766760368285,10.26201248,123.71,123.68,14.76]
[1766760368693,0.7,123.74,123.68,23.56531295]
[1766760368996,10.43767296,123.75,123.65,15.48]
[1766760368997,10.26201248,123.69,123.65,15.48]
[1766760369195,10.26201248,123.68,123.65,15.48]
[1766760369496,10.43767296,123.72,123.65,14.76]
[1766760369497,10.26201248,123.67,123.65,14.76]
[1766760370070,10.26201248,123.66,123.6,20.94600743]
[1766760370292,10.26201248,123.66,123.62,8.08869008]
[1766760370476,10.26201248,123.66,123.63,8.08852191]
[1766760370676,10.26201248,123.66,123.62,0.72]
[1766760370677,10.43767296,123.69,123.64,8.0878852]
[1766760370883,0.7,123.69,123.63,0.72]
[1766760371069,0.7,123.69,123.62,20.22235799]
[1766760371070,10.96201248,123.69,123.65,8.0873047]
[1766760371276,10.26201248,123.72,123.66,0.72]
[1766760371494,10.26201248,123.7,123.66,8.08659812]
[1766760371678,14.76,123.77,123.66,28.30332139]
[1766760371882,10.96201248,123.75,123.69,0.72]
[1766760372090,10.26201248,123.74,123.69,15.48]
[1766760372287,10.26201248,123.76,123.7,0.72]
[1766760372490,10.26201248,123.77,123.71,0.72]
[1766760372896,10.26201248,123.78,123.73,0.72]
[1766760373484,10.26201248,123.78,123.73,8.80189064]
[1766760373682,0.7,123.79,123.72,14.76]
[1766760373683,10.26201248,123.76,123.72,8.08254188]
[1766760373879,10.96201248,123.77,123.73,8.08208285]
[1766760374302,0.7,123.77,123.72,23.53261746]
[1766760374502,10.26201248,123.75,123.72,14.76]
[1766760375391,10.26201248,123.74,123.72,14.76]
[1766760375584,0.68,123.76,123.72,14.76]
[1766760375798,10.26201248,123.74,123.72,14.76]
[1766760375990,0.68,123.76,123.72,14.76]
[1766760376300,10.26201248,123.74,123.72,14.76]
[1766760376475,10.26201248,123.73,123.68,8.7752701]
[1766760376675,0.68,123.77,123.68,14.76]
[1766760376995,10.26201248,123.7,123.68,14.76]
[1766760377176,10.26201248,123.71,123.68,14.76]
[1766760378289,10.26201248,123.7,123.68,14.76]
[1766760378489,10.26201248,123.71,123.68,14.76]
[1766760378889,10.43767296,123.77,123.68,15.45]
[1766760379086,10.26201248,123.74,123.69,0.69]
[1766760379281,10.26201248,123.73,123.69,0.69]
[1766760379509,10.26201248,123.73,123.69,8.77471043]
[1766760379805,10.26201248,123.72,123.68,14.76]
[1766760380003,18.51728715,123.77,123.65,0.69]
[1766760380004,10.26201248,123.7,123.65,0.69]
[1766760380212,10.26201248,123.67,123.63,0.69]
[1766760380388,10.94201248,123.64,123.6,14.76]
[1766760380714,10.94201248,123.66,123.62,8.08929707]
[1766760380879,10.43767296,123.69,123.62,8.08929707]
[1766760381080,24.23,123.78,123.66,0.69]
[1766760381304,24.23,123.78,123.67,15.56860354]
[1766760381305,0.68,123.72,123.67,15.56860354]
[1766760381512,10.26201248,123.68,123.65,8.08699687]
[1766760381719,10.26201248,123.67,123.64,22.8478336]
[1766760382007,10.26201248,123.7,123.65,0.69]
[1766760382186,0.68,123.7,123.65,0.69]
[1766760382386,10.26201248,123.68,123.65,8.77718001]
[1766760382793,10.26201248,123.69,123.65,8.77718001]
[1766760383005,10.26201248,123.71,123.67,8.08592019]
[1766760383190,0.68,123.72,123.68,14.76]
[1766760383395,10.94201248,123.72,123.68,14.76]
[1766760384307,10.26201248,123.71,123.67,8.77592019]
[1766760384486,10.26201248,123.71,123.68,14.76]
[1766760384685,10.26201248,123.69,123.65,0.80873433]
[1766760385005,10.26201248,123.68,123.64,15.45]
[1766760385206,10.26201248,123.67,123.64,14.76]
[1766760385790,0.68,123.68,123.64,22.84786985]
[1766760385999,10.94201248,123.68,123.64,22.84786985]
[1766760386188,10.26201248,123.67,123.64,22.84786985]
[1766760386384,10.26201248,123.67,123.64,14.76]
[1766760386590,10.26201248,123.67,123.64,22.847892]
[1766760386800,0.68,123.73,123.64,43.75788552]
[1766760386999,10.26201248,123.69,123.64,23.537892]
[1766760387212,10.26201248,123.67,123.64,23.537892]
[1766760387898,10.26201248,123.67,123.64,14.76]
[1766760388507,10.26201248,123.67,123.62,81.72298259]
[1766760388508,10.26201248,123.65,123.62,61.5]
[1766760388702,10.26201248,123.63,123.58,1.49919242]
[1766760389009,10.94201248,123.63,123.58,15.45]
[1766760389315,0.68,123.63,123.58,23.54129079]
[1766760389509,10.94201248,123.65,123.59,10.95201248]
[1766760389689,10.94201248,123.65,123.61,8.08996035]
[1766760389890,10.26201248,123.62,123.58,69.59148603]
[1766760390094,10.26201248,123.62,123.59,14.76]
[1766760390489,10.26201248,123.61,123.59,14.76]
[1766760390686,10.26201248,123.61,123.55,0.69]
[1766760390687,10.26201248,123.6,123.55,0.69]
[1766760390891,0.68,123.61,123.55,0.69]
[1766760390892,0.68,123.61,123.55,15.45]
[1766760391212,10.26201248,123.59,123.55,15.45]
[1766760391411,10.26201248,123.58,123.55,15.45]
[1766760391608,0.68,123.6,123.55,15.45]
[1766760391806,10.94201248,123.6,123.55,23.54380135]
[1766760392118,10.26201248,123.59,123.55,23.54380135]
[1766760393094,10.26201248,123.58,123.55,15.45]
[1766760393288,10.26201248,123.59,123.55,23.5438018]
[1766760393496,10.94201248,123.6,123.55,23.5438018]
[1766760394089,10.26201248,123.59,123.55,23.5438018]
[1766760395624,10.26201248,123.59,123.55,15.45]
[1766760395918,0.68,123.58,123.55,14.76]
[1766760396126,10.26201248,123.6,123.55,23.54355429]
[1766760396301,10.26201248,123.58,123.55,14.76]
[1766760396502,10.26201248,123.58,123.53,23.54513814]
[1766760396817,10.26201248,123.57,123.53,23.54513814]
[1766760397407,10.26201248,123.57,123.53,15.45]
[1766760397607,10.94201248,123.58,123.53,23.54516306]
[1766760397814,10.94201248,123.58,123.54,0.69]
[1766760398122,0.68,123.63,123.54,11.0714669]
[1766760398299,10.26201248,123.59,123.55,0.69]
[1766760398505,10.26201248,123.59,123.55,14.76]
[1766760398506,0.68,123.59,123.55,14.76]
[1766760398813,10.26201248,123.58,123.55,14.76]
[1766760399124,14.76,123.65,123.55,14.76]
[1766760399125,0.68,123.65,123.57,0.69]
[1766760399297,10.26201248,123.63,123.58,0.69]
[1766760399495,0.68,123.64,123.59,14.76]
[1766760399714,0.68,123.67,123.6,0.69]
[1766760399917,10.26201248,123.65,123.6,0.69]
[1766760400304,10.26201248,123.64,123.6,0.69]
[1766760400821,0.68,123.65,123.6,0.69]
[1766760401017,10.43767296,123.66,123.61,8.08996035]
[1766760401219,10.94201248,123.66,123.61,8.77996035]
[1766760401422,10.94201248,123.65,123.6,8.09042465]
[1766760401608,10.26201248,123.64,123.6,8.09042465]
[1766760401805,10.26201248,123.64,123.61,14.76]
[1766760402006,0.68,123.68,123.61,15.45]
[1766760402198,6.98519883,123.66,123.61,15.45]
[1766760402595,0.68,123.66,123.61,15.45]
[1766760402898,6.30519883,123.65,123.61,15.45]
[1766760403202,6.98519883,123.65,123.61,14.76]
[1766760403537,6.98519883,123.65,123.61,22.84994552]
[1766760403825,6.98519883,123.65,123.61,14.76]
[1766760404029,0.68,123.65,123.61,22.84991073]
[1766760404241,6.98519883,123.65,123.61,22.84991073]
[1766760405722,6.98519883,123.65,123.61,14.76]
[1766760406112,6.98519883,123.65,123.61,22.84994181]
[1766760406307,0.68,123.65,123.61,22.84994181]
[1766760406506,25.19767296,123.69,123.61,23.55994181]
[1766760406700,6.97519883,123.66,123.61,23.55994181]
[1766760407320,6.30519883,123.67,123.62,0.71]
[1766760407825,6.30519883,123.7,123.63,6.30519883]
[1766760408128,160.64891504,123.83,123.63,6.30519883]
[1766760408129,6.97519883,123.71,123.66,0.71]
[1766760408312,0.67,123.71,123.67,14.76]
[1766760408513,6.30519883,123.72,123.67,15.47]
[1766760408709,0.67,123.76,123.68,0.71]
[1766760408907,6.97519883,123.73,123.68,0.71]
[1766760409105,0.67,123.73,123.68,0.71]
[1766760409424,8.07754442,123.8,123.69,29.85992677]
[1766760409425,0.67,123.75,123.69,29.85992677]
[1766760409625,6.97519883,123.75,123.7,0.71]
[1766760410905,0.67,123.75,123.7,0.71]
[1766760411229,6.97519883,123.75,123.7,0.71]
[1766760411436,6.97519883,123.75,123.7,8.79372221]
[1766760411612,0.67,123.75,123.7,8.79372221]
[1766760411812,6.30519883,123.76,123.71,0.71]
[1766760412018,6.30519883,123.74,123.7,8.08372221]
[1766760412529,6.30519883,123.72,123.68,14.76]
[1766760412704,43.02933977,123.81,123.66,8.08626738]
[1766760412705,6.97519883,123.71,123.66,8.08626738]
[1766760412910,0.67,123.79,123.68,0.71]
[1766760413112,0.67,123.76,123.68,0.71]
[1766760413310,0.67,123.74,123.69,8.08472794]
[1766760413523,6.30519883,123.73,123.69,8.08472794]
[1766760413909,6.97519883,123.73,123.69,8.08472794]
[1766760414108,0.67,123.73,123.69,8.08472794]
[1766760414417,6.30519883,123.72,123.67,14.76]
[1766760414619,6.97519883,123.71,123.67,22.84597005]
[1766760415222,0.67,123.71,123.67,22.84597005]
[1766760415423,6.97519883,123.71,123.67,8.08597005]
[1766760415621,0.67,123.75,123.67,8.79597005]
[1766760415824,6.97519883,123.73,123.68,0.71]
[1766760416150,6.97519883,123.72,123.67,8.08597005]
[1766760416437,0.67,123.72,123.67,8.08597005]
[1766760416739,6.97519883,123.72,123.67,8.79597005]
[1766760417326,6.97519883,123.71,123.67,0.71]
[1766760417637,22.84041371,123.76,123.67,8.79594398]
[1766760417638,6.30519883,123.72,123.67,8.79594398]
[1766760418019,0.67,123.73,123.67,8.79594398]
[1766760418223,6.97519883,123.73,123.67,8.08594398]
[1766760418535,6.97519883,123.73,123.68,0.71]
[1766760419033,6.30519883,123.72,123.68,0.71]
[1766760419340,6.97519883,123.72,123.67,8.08594398]
[1766760419540,6.97519883,123.72,123.67,8.79594398]
[1766760419716,6.97519883,123.71,123.67,8.79594398]
[1766760420043,0.67,123.71,123.67,8.79594398]
[1766760420240,0.67,123.7,123.66,14.76]
[1766760420538,10.43767296,123.74,123.63,14.76]
[1766760420539,0.67,123.66,123.63,14.76]
[1766760420858,6.30519883,123.65,123.6,8.0903852]
[1766760421017,6.30519883,123.64,123.61,8.08971315]
[1766760421225,0.67,123.65,123.6,15.47]
[1766760421525,0.67,123.65,123.61,8.79931123]
[1766760421730,6.97519883,123.64,123.6,22.85042346]
[1766760422236,14.76,123.71,123.6,22.85042346]
[1766760422237,0.67,123.7,123.61,8.0897413]
[1766760422439,6.30519883,123.65,123.61,8.7997413]
[1766760422648,6.97519883,123.65,123.61,8.7997413]
[1766760423116,0.67,123.65,123.61,8.7997413]
[1766760423317,0.67,123.62,123.57,8.09246647]
[1766760423539,6.30519883,123.59,123.55,8.90371282]
[1766760423755,0.67,123.6,123.55,8.90371282]
[1766760423933,6.30519883,123.58,123.55,8.19371282]
[1766760424243,6.97519883,123.58,123.55,8.19371282]
[1766760424417,21.06519883,123.66,123.55,8.19371282]
[1766760424418,6.30519883,123.59,123.55,8.19371282]
[1766760424818,6.97519883,123.6,123.55,8.19371282]
[1766760425014,6.97519883,123.59,123.55,8.19371282]
[1766760425236,0.67,123.59,123.55,8.19371282]
[1766760425440,6.97519883,123.61,123.55,8.90371282]
[1766760425641,0.67,123.63,123.56,0.71]
[1766760425841,6.97519883,123.59,123.55,8.19371282]
[1766760426638,0.67,123.59,123.55,8.19371282]
[1766760426835,6.97519883,123.59,123.55,8.19371282]
[1766760427035,0.67,123.59,123.55,8.19371282]
[1766760427631,6.97519883,123.58,123.55,0.1]
[1766760428037,6.97519883,123.57,123.55,0.1]
[1766760428735,10.43767296,123.63,123.52,15.47]
[1766760428736,6.97519883,123.56,123.52,22.85568172]
[1766760428938,6.30519883,123.55,123.52,22.85568172]
[1766760429133,6.30519883,123.55,123.52,14.76]
[1766760429339,6.30519883,123.54,123.52,14.76]
[1766760429651,6.97519883,123.55,123.51,8.09607419]
[1766760430149,6.30519883,123.54,123.5,8.80708992]
[1766760430347,0.67,123.55,123.5,8.80708992]
[1766760430653,6.30519883,123.54,123.5,8.80708992]
[1766760430834,0.67,123.56,123.49,0.71]
[1766760431157,6.97519883,123.54,123.5,8.09712599]
[1766760431455,6.97519883,123.58,123.52,7.01519883]
[1766760431628,6.97519883,123.58,123.53,8.80500952]
[1766760431834,0.67,123.58,123.53,8.80500952]
[1766760432030,0.67,123.58,123.54,0.71]
[1766760432234,104.9,123.63,123.54,0.71]
[1766760432235,6.30519883,123.6,123.54,7.01519883]
[1766760432432,6.30519883,123.58,123.53,8.09500952]
[1766760432639,6.97519883,123.58,123.53,8.09500952]
[1766760432840,0.67,123.58,123.53,8.09500952]
[1766760433038,0.67,123.58,123.53,8.80500952]
[1766760433247,6.97519883,123.54,123.48,21.76479966]
[1766760433440,0.67,123.54,123.5,8.09671828]
[1766760433656,0.67,123.57,123.52,8.09563699]
[1766760433860,0.67,123.57,123.52,8.80563699]
[1766760433861,6.97519883,123.57,123.52,8.80563699]
[1766760434071,6.98519883,123.59,123.54,0.68]
[1766760434232,0.68,123.59,123.54,0.68]
[1766760434433,6.98519883,123.59,123.54,0.68]
[1766760435061,0.68,123.59,123.54,0.68]
[1766760435744,0.68,123.65,123.57,0.68]
[1766760436046,0.68,123.65,123.6,0.68]
[1766760436250,0.68,123.65,123.6,15.46]
[1766760436251,6.30519883,123.65,123.6,15.46]
[1766760436437,14.78,123.71,123.6,15.46]
[1766760436438,10.43767296,123.68,123.6,15.46]
[1766760436637,6.30519883,123.63,123.6,15.46]
[1766760436954,6.30519883,123.64,123.6,15.46]
[1766760437155,6.98519883,123.65,123.6,15.46]
[1766760437658,6.98519883,123.65,123.6,23.55022076]
[1766760437956,0.68,123.65,123.6,23.55022076]
[1766760438258,6.98519883,123.63,123.6,14.78]
[1766760438560,6.98519883,123.62,123.57,23.55241426]
[1766760438940,0.68,123.59,123.55,8.09372854]
[1766760439255,6.98519883,123.58,123.53,23.55500521]
[1766760439554,6.98519883,123.57,123.53,22.87500521]
[1766760439752,6.30519883,123.55,123.53,14.78]
[1766760439959,6.30519883,123.55,123.5,35.02222917]
[1766760440262,6.98519883,123.55,123.51,8.09644272]
[1766760440940,6.98519883,123.55,123.5,14.78]
[1766760440941,6.30519883,123.56,123.52,8.09574479]
[1766760441143,6.98519883,123.57,123.52,8.09574479]
[1766760442163,130.09767296,123.61,123.54,0.68]
[1766760442164,6.30519883,123.59,123.54,0.68]
[1766760442542,6.98519883,123.59,123.54,0.68]
[1766760442956,6.98519883,123.61,123.55,6.98519883]
[1766760443864,6.30519883,123.59,123.53,15.46]
[1766760444057,6.98519883,123.6,123.54,15.07911597]
[1766760444236,6.98519883,123.6,123.55,0.68]
[1766760444665,11.11767296,123.62,123.56,0.68]
[1766760444856,6.30519883,123.61,123.56,0.68]
[1766760445041,6.30519883,123.6,123.56,0.68]
[1766760445547,0.68,123.61,123.56,0.68]
[1766760445736,6.98519883,123.61,123.56,0.68]
[1766760446238,6.30519883,123.62,123.57,8.7725791]
[1766760446449,6.98519883,123.63,123.58,0.68]
[1766760447069,0.68,123.63,123.58,6.98519883]
[1766760447440,6.98519883,123.63,123.58,0.68]
[1766760447641,0.68,123.63,123.58,6.98519883]
[1766760447859,6.98519883,123.63,123.58,6.98519883]
[1766760448776,6.98519883,123.63,123.58,8.77128906]
[1766760450166,6.30519883,123.64,123.59,0.68]
[1766760450861,6.30519883,123.64,123.59,14.78]
[1766760451048,8.08211428,123.73,123.61,6.30519883]
[1766760451247,6.30519883,123.67,123.62,0.68]
[1766760452189,6.98519883,123.67,123.62,8.76899985]
[1766760452349,0.68,123.67,123.62,8.76899985]
[1766760452548,6.30519883,123.66,123.62,8.76899985]
[1766760452762,6.98519883,123.67,123.62,8.76899985]
[1766760454254,6.30519883,123.64,123.61,8.08996035]
[1766760454458,6.98519883,123.64,123.61,8.08996035]
[1766760454676,0.68,123.64,123.61,8.08996035]
[1766760454871,25.21767296,123.71,123.61,8.08996035]
[1766760454872,0.68,123.66,123.61,8.08996035]
[1766760455178,6.30519883,123.65,123.61,8.08996035]
[1766760456201,6.98519883,123.65,123.61,8.08996035]
[1766760456748,0.68,123.65,123.61,8.08996035]
[1766760456954,6.98519883,123.65,123.61,8.08996035]
[1766760457883,0.68,123.63,123.6,8.09036055]
[1766760458057,6.98519883,123.63,123.6,8.09036055]
[1766760458459,6.30519883,123.62,123.56,68.61452223]
[1766760458659,6.30519883,123.6,123.56,15.5693234]
[1766760458874,6.98519883,123.6,123.56,14.76]
[1766760459186,6.30519883,123.59,123.56,14.76]
[1766760459956,6.30519883,123.59,123.56,22.85277188]
[1766760460177,6.98519883,123.6,123.56,22.85277188]
[1766760461089,6.98519883,123.6,123.56,23.53277188]
[1766760461581,6.30519883,123.59,123.56,22.85277188]
[1766760462486,14.76,123.64,123.51,0.80965104]
[1766760462487,6.30519883,123.57,123.52,20.23907058]
[1766760462689,6.98519883,123.57,123.53,8.09477728]